Workbook

Sheet データ表
C3: 日付 | D3: 出勤者A | E3: 出勤者Aの売上 | F3: 出勤者Aの売上目標 | G3: 出勤者B | H3: 出勤者Bの売上 | I3: 出勤者Bの売上目標 | J3: 出勤者C | K3: 出勤者Cの売上 | L3: 出勤者Cの売上目標 | M3: お店 | N3: お店の売上 | O3: お店の売上目標 | P3: 今週の売上 | Q3: 今週の売上目標 | R3: 今月の売上 | S3: 今月の売上目標 | T3: 今年の売上 | U3: 今年の売上目標 | V3: 家賃 | W3: 光熱費 電気代 | X3: 出費 駐車場代 | Y3: 光熱費 水道代 | Z3: ウォーターサーバー代 | AA3: 雑誌代 | AB3: 人件費 | AC3: 利益 | AD3: 今日最低限必要な額 | AE3: 今月最低限必要な額 | AF3: 発注商品 A会社 | AG3: 発注商品 B会社 | AH3: 発注商品 C会社 | AI3: そろそろ無くなるもの | AJ3: 報告内容 | AK3: 出勤者Aが明日する事 | AL3: 出勤者Bが明日する事 | AM3: 出勤者Cが明日する事 | AN3: 項目名38 | AO3: 項目名39 | AP3: 項目名40 | AQ3: 項目名41 | AR3: 項目名42 | AS3: 項目名43 | AT3: 項目名44 | AU3: 項目名45 | AV3: 項目名46 | AW3: 項目名47 | AX3: 項目名48 | AY3: 項目名49 | AZ3: 項目名50 | BA3: 項目名51 | BB3: 項目名52 | BC3: 項目名53 | BD3: 項目名54 | BE3: 項目名55 | BF3: 項目名56 | BG3: 項目名57 | BH3: 項目名58 | BI3: 項目名59 | BJ3: 項目名60 | BK3: 項目名61 | BL3: 項目名62 | BM3: 項目名63 | BN3: 項目名64 | BO3: 項目名65 | BP3: 項目名66 | BQ3: 項目名67 | BR3: 項目名68 | BS3: 項目名69 | BT3: 項目名70 | BU3: 項目名71 | BV3: 項目名72 | BW3: 項目名73 | BX3: 項目名74 | BY3: 項目名75 | BZ3: 項目名76 | CA3: 項目名77 | CB3: 項目名78 | CC3: 項目名79 | CD3: 項目名80 | CE3: 項目名81 | CF3: 項目名82 | CG3: 項目名83 | CH3: 項目名84 | CI3: 項目名85 | CJ3: 項目名86 | CK3: 項目名87 | CL3: 項目名88 | CM3: 項目名89 | CN3: 項目名90 | CO3: 項目名91 | CP3: 項目名92 | CQ3: 項目名93 | CR3: 項目名94 | CS3: 項目名95 | CT3: 項目名96 | CU3: 項目名97 | CV3: 項目名98 | CW3: 項目名99 | CX3: 項目名100 | CY3: 関連フォルダ番号
C4: 2020-11-01 | D4: 佐藤 | E4: 20000 | F4: 25000 | G4: 田中 | H4: 30000 | I4: 30000 | J4: 鈴木 | K4: 19000 | L4: 20000 | M4: 中央店 | N4: =E4+H4+K4 -> 69000 | O4: 80000 | AD4: 10000 | AF4: アルコール消毒液 | AG4: タオル３ | AH4: 水 | AI4: 水 | AJ4: 明日は１３：００〜 出勤に変更 | AK4: 発注掛け | AL4: 売上確認 | AM4: マット交換
C5: 2020-11-02 | D5: 佐藤 | E5: 15000 | F5: 25000 | G5: 田中 | H5: 25000 | I5: 30000 | J5: 鈴木 | K5: 18000 | L5: 20000 | M5: 中央店 | N5: =E5+H5+K5 -> 58000 | O5: 80000 | AD5: 10000
C6: 2020-11-03 | D6: 佐藤 | E6: 30000 | F6: 25000 | G6: 田中 | H6: 32000 | I6: 30000 | J6: 鈴木 | K6: 25000 | L6: 20000 | M6: 中央店 | N6: =E6+H6+K6 -> 87000 | O6: 80000 | AD6: 10000
C7: 2020-11-04 | D7: 佐藤 | E7: 18000 | F7: 25000 | G7: 田中 | H7: 19000 | I7: 30000 | J7: 鈴木 | K7: 20000 | L7: 20000 | M7: 中央店 | N7: =E7+H7+K7 -> 57000 | O7: 80000 | AD7: 10000
C8: 2020-11-05 | D8: 佐藤 | E8: 20000 | F8: 25000 | G8: 田中 | H8: 28000 | I8: 30000 | J8: 鈴木 | K8: 19000 | L8: 20000 | M8: 中央店 | N8: 67000 | O8: 80000 | AD8: 10000
C9: 2020-11-06 | D9: 佐藤 | E9: 20000 | F9: 25000 | G9: 田中 | H9: 30000 | I9: 30000 | J9: 鈴木 | K9: 19000 | L9: 20000 | M9: 中央店 | N9: 69000 | O9: 80000 | AD9: 10000
C10: 2020-11-07 | D10: 佐藤 | E10: 15000 | F10: 25000 | G10: 田中 | H10: 25000 | I10: 30000 | J10: 鈴木 | K10: 18000 | L10: 20000 | M10: 中央店 | N10: 58000 | O10: 80000 | P10: =SUM(N4:N10) -> 465000 | Q10: =SUM(O4:O10) -> 560000 | AD10: 10000
C11: 2020-11-08 | D11: 佐藤 | E11: 30000 | F11: 25000 | G11: 田中 | H11: 32000 | I11: 30000 | J11: 鈴木 | K11: 25000 | L11: 20000 | M11: 中央店 | N11: 87000 | O11: 80000 | AD11: 10000
C12: 2020-11-09 | D12: 佐藤 | E12: 18000 | F12: 25000 | G12: 田中 | H12: 19000 | I12: 30000 | J12: 鈴木 | K12: 20000 | L12: 20000 | M12: 中央店 | N12: 57000 | O12: 80000 | AD12: 10000
C13: 2020-11-10 | D13: 佐藤 | E13: 20000 | F13: 25000 | G13: 田中 | H13: 28000 | I13: 30000 | J13: 鈴木 | K13: 19000 | L13: 20000 | M13: 中央店 | N13: 67000 | O13: 80000 | AD13: 10000
C14: 2020-11-11 | D14: 佐藤 | E14: 20000 | F14: 25000 | G14: 田中 | H14: 30000 | I14: 30000 | J14: 鈴木 | K14: 19000 | L14: 20000 | M14: 中央店 | N14: 69000 | O14: 80000 | AD14: 10000
C15: 2020-11-12 | D15: 佐藤 | E15: 15000 | F15: 25000 | G15: 田中 | H15: 25000 | I15: 30000 | J15: 鈴木 | K15: 18000 | L15: 20000 | M15: 中央店 | N15: 58000 | O15: 80000 | AD15: 10000
C16: 2020-11-13 | D16: 佐藤 | E16: 30000 | F16: 25000 | G16: 田中 | H16: 32000 | I16: 30000 | J16: 鈴木 | K16: 25000 | L16: 20000 | M16: 中央店 | N16: 87000 | O16: 80000 | AD16: 10000
C17: 2020-11-14 | D17: 佐藤 | E17: 18000 | F17: 25000 | G17: 田中 | H17: 19000 | I17: 30000 | J17: 鈴木 | K17: 20000 | L17: 20000 | M17: 中央店 | N17: 57000 | O17: 80000 | P17: =SUM(N11:N17) -> 482000 | Q17: =SUM(O11:O17) -> 560000 | AD17: 10000
C18: 2020-11-15 | D18: 佐藤 | E18: 20000 | F18: 25000 | G18: 田中 | H18: 28000 | I18: 30000 | J18: 鈴木 | K18: 19000 | L18: 20000 | M18: 中央店 | N18: 67000 | O18: 80000 | AD18: 10000
C19: 2020-11-16 | D19: 佐藤 | E19: 20000 | F19: 25000 | G19: 田中 | H19: 30000 | I19: 30000 | J19: 鈴木 | K19: 19000 | L19: 20000 | M19: 中央店 | N19: 69000 | O19: 80000 | AD19: 10000
C20: 2020-11-17 | D20: 佐藤 | E20: 15000 | F20: 25000 | G20: 田中 | H20: 25000 | I20: 30000 | J20: 鈴木 | K20: 18000 | L20: 20000 | M20: 中央店 | N20: 58000 | O20: 80000 | AD20: 10000
C21: 2020-11-18 | D21: 佐藤 | E21: 30000 | F21: 25000 | G21: 田中 | H21: 32000 | I21: 30000 | J21: 鈴木 | K21: 25000 | L21: 20000 | M21: 中央店 | N21: 87000 | O21: 80000 | AD21: 10000
C22: 2020-11-19 | D22: 佐藤 | E22: 18000 | F22: 25000 | G22: 田中 | H22: 19000 | I22: 30000 | J22: 鈴木 | K22: 20000 | L22: 20000 | M22: 中央店 | N22: 57000 | O22: 80000 | AD22: 10000
C23: 2020-11-20 | D23: 佐藤 | E23: 20000 | F23: 25000 | G23: 田中 | H23: 28000 | I23: 30000 | J23: 鈴木 | K23: 19000 | L23: 20000 | M23: 中央店 | N23: 67000 | O23: 80000 | AD23: 10000
C24: 2020-11-21 | D24: 佐藤 | E24: 20000 | F24: 25000 | G24: 田中 | H24: 30000 | I24: 30000 | J24: 鈴木 | K24: 19000 | L24: 20000 | M24: 中央店 | N24: 69000 | O24: 80000 | P24: =SUM(N18:N24) -> 474000 | Q24: =SUM(O18:O24) -> 560000 | AD24: 10000
C25: 2020-11-22 | D25: 佐藤 | E25: 15000 | F25: 25000 | G25: 田中 | H25: 25000 | I25: 30000 | J25: 鈴木 | K25: 18000 | L25: 20000 | M25: 中央店 | N25: 58000 | O25: 80000 | AD25: 10000
C26: 2020-11-23 | D26: 佐藤 | E26: 30000 | F26: 25000 | G26: 田中 | H26: 32000 | I26: 30000 | J26: 鈴木 | K26: 25000 | L26: 20000 | M26: 中央店 | N26: 87000 | O26: 80000 | AD26: 10000
C27: 2020-11-24 | D27: 佐藤 | E27: 18000 | F27: 25000 | G27: 田中 | H27: 19000 | I27: 30000 | J27: 鈴木 | K27: 20000 | L27: 20000 | M27: 中央店 | N27: 57000 | O27: 80000 | AD27: 10000
C28: 2020-11-25 | D28: 佐藤 | E28: 20000 | F28: 25000 | G28: 田中 | H28: 28000 | I28: 30000 | J28: 鈴木 | K28: 19000 | L28: 20000 | M28: 中央店 | N28: 67000 | O28: 80000 | AD28: 10000
C29: 2020-11-26 | D29: 佐藤 | E29: 20000 | F29: 25000 | G29: 田中 | H29: 30000 | I29: 30000 | J29: 鈴木 | K29: 19000 | L29: 20000 | M29: 中央店 | N29: 69000 | O29: 80000 | AD29: 10000
C30: 2020-11-27 | D30: 佐藤 | E30: 15000 | F30: 25000 | G30: 田中 | H30: 25000 | I30: 30000 | J30: 鈴木 | K30: 18000 | L30: 20000 | M30: 中央店 | N30: 58000 | O30: 80000 | AD30: 10000
C31: 2020-11-28 | D31: 佐藤 | E31: 30000 | F31: 25000 | G31: 田中 | H31: 32000 | I31: 30000 | J31: 鈴木 | K31: 25000 | L31: 20000 | M31: 中央店 | N31: 87000 | O31: 80000 | P31: =SUM(N25:N31) -> 483000 | Q31: =SUM(O25:O31) -> 560000 | AD31: 10000
C32: 2020-11-29 | D32: 佐藤 | E32: 18000 | F32: 25000 | G32: 田中 | H32: 19000 | I32: 30000 | J32: 鈴木 | K32: 20000 | L32: 20000 | M32: 中央店 | N32: 57000 | O32: 80000 | AD32: 10000
C33: 2020-11-30 | D33: 佐藤 | E33: 20000 | F33: 25000 | G33: 田中 | H33: 28000 | I33: 30000 | J33: 鈴木 | K33: 19000 | L33: 20000 | M33: 中央店 | N33: 67000 | O33: 80000 | R33: =SUM(P10+P17+P24+P31) -> 1904000 | S33: =SUM(Q10+Q17+Q24+Q31) -> 2240000 | V33: 200000 | W33: 50000 | X33: 20000 | Y33: 10000 | Z33: 15000 | AA33: 5000 | AB33: 600000 | AC33: =R33-V33-W33-X33-Y33-Z33-AA33-AB33 -> 1004000 | AD33: 10000 | AE33: =SUM(AD4:AD33) -> 300000
C34: 2020-12-01
C35: 2020-12-02

Sheet システム設定
E1: <印刷作業領域> | H1: <項目条件設定> | K1: <一覧表印刷設定> | M1: <印刷シート設定> | Q1: <保存：一覧表印刷設定>
E2: 項目名 | F2: 設定セル | H2: 計算項目 | I2: 絞込項目 | J2: クイック | K2: 表示順序 | M2: 印刷シート名 | N2: 種別 | O2: ページ枚数 | Q2: (1) | R2: (2) | S2: (3) | T2: (4) | U2: (5) | V2: (6) | W2: (7) | X2: (8) | Y2: (9) | Z2: (10)
E3: 名前 | F3: 佐藤花子 | H3: × | I3: 文字列 | K3: 3 | M3: 台帳印刷（１件を１ページ） | N3: 台帳 | O3: 1 | Q3: 3
E4: ふりがな | F4: サトウハナコ | H4: × | I4: 文字列 | K4: 2 | M4: はがき宛名印刷 | N4: 台帳 | O4: 1 | Q4: 2
E5: 電話番号 | F5: 0000******** | H5: × | K5: 5 | M5: ラベル12枚 | N5: ラベル | O5: 12 | Q5: 5
B6: <ユーザー設定> | E6: 実際の年齢 | F6: ８歳 | H6: × | I6: 文字列 | K6: 6 | Q6: 6
B7: 項目名 | C7: 設定値 | E7: 学年 | F7: 小学三年生 | H7: × | I7: 文字列 | K7: 1 | Q7: 1
B8: 郵便番号 | C8: 812-0011 | E8: 案件で出せそうな年齢 | F8: １～４年生 | H8: × | I8: 文字列
B9: 住所１ | C9: 福岡市博多区 | E9: 身長 | H9: × | K9: 7 | Q9: 7
B10: 住所２ | C10: (マンション名など) | E10: 体重 | H10: × | I10: 文字列 | K10: 4 | Q10: 4
B11: ユーザー名 | C11: 日本アプリケーション開発 | E11: B/W/H | H11: ×
B12: 電話番号 | C12: TEL 092-123-4567 | E12: 住まい | H12: ×
B13: IME郵便番号 | C13: TRUE | E13: 連絡取れる時間 | F13: アルバイトをしているためAM中可能 | H13: ×
E14: 歯並び・歯の状況 | H14: ×
B15: <並替設定> | E15: 視力 | F15: メガネ | H15: ×
B16: 並替名称 | C16: Column番号 | E16: 移動手段 | F16: 市外であれば送迎手配 希望 | H16: ×
B17: ふりがな | C17: 2 | E17: 付き添い者情報 | F17: 母・働いているため動きにくい | H17: ×
B18: 住所 | C18: 4 | E18: 送迎手配 | F18: 基本母 | H18: ×
B19: 来店区分 | C19: 5 | E19: 宿泊先可能場所 | H19: ×
B20: 地区区分 | C20: 6 | E20: 東京オーディション | F20: 可能 | H20: ×
E21: 家族構成 | F21: 赤ちゃん３歳女の子 | H21: ×
B22: <編集設定> | E22: 方言・外国語 | F22: 中国語、博多弁 | H22: ×
B23: 項目名 | C23: 設定値 | E23: 特技 | F23: 空手 | H23: ×
B24: フォームタイプ | C24: B | E24: 出演歴 | H24: ×
B25: フォーム倍率 | C25: 100 | E25: 項目名23 | H25: ×
B26: ラベル枚数初期値 | C26: 4 | E26: 項目名24 | H26: ×
B27: 関連フォルダ項目番号 | C27: 1 | E27: 項目名25 | H27: ×
B28: PDFファイル項目番号 | C28: 0 | E28: 項目名26 | H28: ×
B29: ハイパーリンク項目番号 | C29: 0 | E29: 項目名27 | H29: ×
B30: ハイパーリンクON/OFF | C30: 0 | E30: 項目名28 | H30: ×
E31: 項目名29 | H31: ×
E32: 項目名30 | H32: ×
E33: 項目名31 | H33: ×
E34: 項目名32 | H34: ×
E35: 項目名33 | H35: ×
E36: 項目名34 | H36: ×
E37: 項目名35 | H37: ×
E38: 項目名36 | H38: ×
E39: 項目名37 | H39: ×
E40: 項目名38 | H40: ×
E41: 項目名39 | H41: ×
E42: 項目名40 | H42: ×
E43: 項目名41 | H43: ×
E44: 項目名42 | H44: ×
E45: 項目名43 | H45: ×
E46: 項目名44 | H46: ×
E47: 項目名45 | H47: ×
E48: 項目名46 | H48: ×
E49: 項目名47 | H49: ×
E50: 項目名48 | H50: ×
E51: 項目名49 | H51: ×
E52: 項目名50 | H52: ×
E53: 項目名51 | H53: ×
E54: 項目名52 | H54: ×
E55: 項目名53 | H55: ×
E56: 項目名54 | H56: ×
E57: 項目名55 | H57: ×
E58: 項目名56 | H58: ×
E59: 項目名57 | H59: ×
E60: 項目名58 | H60: ×
E61: 項目名59 | H61: ×
E62: 項目名60 | H62: ×
E63: 項目名61 | H63: ×
E64: 項目名62 | H64: ×
E65: 項目名63 | H65: ×
E66: 項目名64 | H66: ×
E67: 項目名65 | H67: ×
E68: 項目名66 | H68: ×
E69: 項目名67 | H69: ×
E70: 項目名68 | H70: ×
E71: 項目名69 | H71: ×
E72: 項目名70 | H72: ×
E73: 項目名71 | H73: ×
E74: 項目名72 | H74: ×
E75: 項目名73 | H75: ×
E76: 項目名74 | H76: ×
E77: 項目名75 | H77: ×
E78: 項目名76 | H78: ×
E79: 項目名77 | H79: ×
E80: 項目名78 | H80: ×
E81: 項目名79 | H81: ×
E82: 項目名80 | H82: ×
E83: 項目名81 | H83: ×
E84: 項目名82 | H84: ×
E85: 項目名83 | H85: ×
E86: 項目名84 | H86: ×
E87: 項目名85 | H87: ×
E88: 項目名86 | H88: ×
E89: 項目名87 | H89: ×
E90: 項目名88 | H90: ×
E91: 項目名89 | H91: ×
E92: 項目名90 | H92: ×
E93: 項目名91 | H93: ×
E94: 項目名92 | H94: ×
E95: 項目名93 | H95: ×
E96: 項目名94 | H96: ×
E97: 項目名95 | H97: ×
E98: 項目名96 | H98: ×
E99: 項目名97 | H99: ×
E100: 項目名98 | H100: ×
E101: 項目名99 | H101: ×
E102: 項目名100 | H102: ×

Sheet ラベル用_システム設定
C2: <ラベル印刷設定領域>
C3: 番号 | D3: 名前 | E3: ふりがな | F3: 電話番号 | G3: 実際の年齢 | H3: 学年 | I3: 案件で出せそうな年齢 | J3: 身長 | K3: 体重 | L3: B/W/H | M3: 住まい | N3: 連絡取れる時間 | O3: 歯並び・歯の状況 | P3: 視力 | Q3: 移動手段 | R3: 付き添い者情報 | S3: 送迎手配 | T3: 宿泊先可能場所 | U3: 東京オーディション | V3: 家族構成 | W3: 方言・外国語 | X3: 特技 | Y3: 出演歴 | Z3: 項目名23 | AA3: 項目名24 | AB3: 項目名25 | AC3: 項目名26 | AD3: 項目名27 | AE3: 項目名28 | AF3: 項目名29 | AG3: 項目名30 | AH3: 項目名31 | AI3: 項目名32 | AJ3: 項目名33 | AK3: 項目名34 | AL3: 項目名35 | AM3: 項目名36 | AN3: 項目名37 | AO3: 項目名38 | AP3: 項目名39 | AQ3: 項目名40 | AR3: 項目名41 | AS3: 項目名42 | AT3: 項目名43 | AU3: 項目名44 | AV3: 項目名45 | AW3: 項目名46 | AX3: 項目名47 | AY3: 項目名48 | AZ3: 項目名49 | BA3: 項目名50 | BB3: 項目名51 | BC3: 項目名52 | BD3: 項目名53 | BE3: 項目名54 | BF3: 項目名55 | BG3: 項目名56 | BH3: 項目名57 | BI3: 項目名58 | BJ3: 項目名59 | BK3: 項目名60 | BL3: 項目名61 | BM3: 項目名62 | BN3: 項目名63 | BO3: 項目名64 | BP3: 項目名65 | BQ3: 項目名66 | BR3: 項目名67 | BS3: 項目名68 | BT3: 項目名69 | BU3: 項目名70 | BV3: 項目名71 | BW3: 項目名72 | BX3: 項目名73 | BY3: 項目名74 | BZ3: 項目名75 | CA3: 項目名76 | CB3: 項目名77 | CC3: 項目名78 | CD3: 項目名79 | CE3: 項目名80 | CF3: 項目名81 | CG3: 項目名82 | CH3: 項目名83 | CI3: 項目名84 | CJ3: 項目名85 | CK3: 項目名86 | CL3: 項目名87 | CM3: 項目名88 | CN3: 項目名89 | CO3: 項目名90 | CP3: 項目名91 | CQ3: 項目名92 | CR3: 項目名93 | CS3: 項目名94 | CT3: 項目名95 | CU3: 項目名96 | CV3: 項目名97 | CW3: 項目名98 | CX3: 項目名99 | CY3: 項目名100
C4: 1 | D4: 佐藤花子 | E4: サトウハナコ | F4: 160-0001 | G4: 東京都新宿区片町 | H4: ○○マンション1号室 | I4: 一般 | J4: 東部 | K4: aaa@*** | L4: 0000******** | N4: 冷蔵庫 | O4: 6 | S4: 営業1課 | T4: 担当2
C5: 2
C6: 3
C7: 4
C8: 5
C9: 6
C10: 7
C11: 8
C12: 9
C13: 10
C14: 11
C15: 12
C16: 13
C17: 14
C18: 15
C19: 16
C20: 17
C21: 18
C22: 19
C23: 20
C24: 21
C25: 22
C26: 23
C27: 24
C28: 25
C29: 26
C30: 27
C31: 28
C32: 29
C33: 30
C34: 31
C35: 32
C36: 33
C37: 34
C38: 35
C39: 36
C40: 37
C41: 38
C42: 39
C43: 40
C44: 41
C45: 42
C46: 43
C47: 44
C48: 45
C49: 46
C50: 47
C51: 48
C52: 49
C53: 50

Sheet リスト表
B2: 番号 | C2: 名前 | D2: ふりがな | E2: 電話番号 | F2: 実際の年齢 | G2: 学年 | H2: 案件で出せそうな年齢 | I2: 身長 | J2: 体重 | K2: B/W/H | L2: 住まい | M2: 連絡取れる時間 | N2: 歯並び・歯の状況 | O2: 視力 | P2: 移動手段 | Q2: 付き添い者情報 | R2: 送迎手配 | S2: 宿泊先可能場所 | T2: 東京オーディション | U2: 家族構成 | V2: 方言・外国語 | W2: 特技 | X2: 出演歴 | Y2: 項目名23 | Z2: 項目名24 | AA2: 項目名25 | AB2: 項目名26 | AC2: 項目名27 | AD2: 項目名28 | AE2: 項目名29 | AF2: 項目名30 | AG2: 項目名31 | AH2: 項目名32 | AI2: 項目名33 | AJ2: 項目名34 | AK2: 項目名35 | AL2: 項目名36 | AM2: 項目名37 | AN2: 項目名38 | AO2: 項目名39 | AP2: 項目名40 | AQ2: 項目名41 | AR2: 項目名42 | AS2: 項目名43 | AT2: 項目名44 | AU2: 項目名45 | AV2: 項目名46 | AW2: 項目名47 | AX2: 項目名48 | AY2: 項目名49 | AZ2: 項目名50 | BA2: 項目名51 | BB2: 項目名52 | BC2: 項目名53 | BD2: 項目名54 | BE2: 項目名55 | BF2: 項目名56 | BG2: 項目名57 | BH2: 項目名58 | BI2: 項目名59 | BJ2: 項目名60 | BK2: 項目名61 | BL2: 項目名62 | BM2: 項目名63 | BN2: 項目名64 | BO2: 項目名65 | BP2: 項目名66 | BQ2: 項目名67 | BR2: 項目名68 | BS2: 項目名69 | BT2: 項目名70 | BU2: 項目名71 | BV2: 項目名72 | BW2: 項目名73 | BX2: 項目名74 | BY2: 項目名75 | BZ2: 項目名76 | CA2: 項目名77 | CB2: 項目名78 | CC2: 項目名79 | CD2: 項目名80 | CE2: 項目名81 | CF2: 項目名82 | CG2: 項目名83 | CH2: 項目名84 | CI2: 項目名85 | CJ2: 項目名86 | CK2: 項目名87 | CL2: 項目名88 | CM2: 項目名89 | CN2: 項目名90 | CO2: 項目名91 | CP2: 項目名92 | CQ2: 項目名93 | CR2: 項目名94 | CS2: 項目名95 | CT2: 項目名96 | CU2: 項目名97 | CV2: 項目名98 | CW2: 項目名99 | CX2: 項目名100
B3: 1
B4: 2
B5: 3
B6: 4
B7: 5
B8: 6
B9: 7
B10: 8
B11: 9
B12: 10
B13: 11
B14: 12
B15: 13
B16: 14
B17: 15
B18: 16
B19: 17
B20: 18
B21: 19
B22: 20
B23: 21
B24: 22
B25: 23
B26: 24
B27: 25
B28: 26
B29: 27
B30: 28
B31: 29
B32: 30
B33: 31
B34: 32
B35: 33
B36: 34
B37: 35
B38: 36
B39: 37
B40: 38
B41: 39
B42: 40
B43: 41
B44: 42
B45: 43
B46: 44
B47: 45
B48: 46
B49: 47
B50: 48
B51: 49
B52: 50
B53: 51
B54: 52
B55: 53
B56: 54
B57: 55
B58: 56
B59: 57
B60: 58
B61: 59
B62: 60
B63: 61
B64: 62
B65: 63
B66: 64
B67: 65
B68: 66
B69: 67
B70: 68
B71: 69
B72: 70
B73: 71
B74: 72
B75: 73
B76: 74
B77: 75
B78: 76
B79: 77
B80: 78
B81: 79
B82: 80
B83: 81
B84: 82
B85: 83
B86: 84
B87: 85
B88: 86
B89: 87
B90: 88
B91: 89
B92: 90
B93: 91
B94: 92
B95: 93
B96: 94
B97: 95
B98: 96
B99: 97
B100: 98
B101: 99
B102: 100
B103: 101
B104: 102
B105: 103
B106: 104
B107: 105
B108: 106
B109: 107
B110: 108
B111: 109
B112: 110
B113: 111
B114: 112
B115: 113
B116: 114
B117: 115
B118: 116
B119: 117
B120: 118
B121: 119
B122: 120
B123: 121
B124: 122
B125: 123
B126: 124
B127: 125
B128: 126
B129: 127
B130: 128
B131: 129
B132: 130
B133: 131
B134: 132
B135: 133
B136: 134
B137: 135
B138: 136
B139: 137
B140: 138
B141: 139
B142: 140
B143: 141
B144: 142
B145: 143
B146: 144
B147: 145
B148: 146
B149: 147
B150: 148
B151: 149
B152: 150
B153: 151
B154: 152
B155: 153
B156: 154
B157: 155
B158: 156
B159: 157
B160: 158
B161: 159
B162: 160
B163: 161
B164: 162
B165: 163
B166: 164
B167: 165
B168: 166
B169: 167
B170: 168
B171: 169
B172: 170
B173: 171
B174: 172
B175: 173
B176: 174
B177: 175
B178: 176
B179: 177
B180: 178
B181: 179
B182: 180
B183: 181
B184: 182
B185: 183
B186: 184
B187: 185
B188: 186
B189: 187
B190: 188
B191: 189
B192: 190
B193: 191
B194: 192
B195: 193
B196: 194
B197: 195
B198: 196
B199: 197
B200: 198
B201: 199
... 301 more rows

Sheet 全項目印刷
B2: ■このシートには、1レコードのデータを1枚に収めています。
B3: ※必要なデータを［システム設定］とリンク設定することで、必要なデータだけを印刷することができます。
B4: ※ここでは、データが整然と並べられていますが、レイアウトは自由に設計できます。
C6: 内 容（1-20） | F6: 内 容（21-40）
B7: =システム設定!E3 -> 名前 | C7: =システム設定!$F$3 -> 佐藤花子 | E7: =システム設定!E23 -> 特技 | F7: =システム設定!$F$23 -> 空手
B8: =システム設定!E4 -> ふりがな | C8: =システム設定!$F$4 -> サトウハナコ | E8: =システム設定!E24 -> 出演歴 | F8: =システム設定!$F$24 -> 0
B9: =システム設定!E5 -> 電話番号 | C9: =システム設定!$F$5 -> 0000******** | E9: =システム設定!E25 -> 項目名23 | F9: =システム設定!$F$25 -> 0
B10: =システム設定!E6 -> 実際の年齢 | C10: =システム設定!$F$6 -> ８歳 | E10: =システム設定!E26 -> 項目名24 | F10: =システム設定!$F$26 -> 0
B11: =システム設定!E7 -> 学年 | C11: =システム設定!$F$7 -> 小学三年生 | E11: =システム設定!E27 -> 項目名25 | F11: =システム設定!$F$27 -> 0
B12: =システム設定!E8 -> 案件で出せそうな年齢 | C12: =システム設定!$F$8 -> １～４年生 | E12: =システム設定!E28 -> 項目名26 | F12: =システム設定!$F$28 -> 0
B13: =システム設定!E9 -> 身長 | C13: =システム設定!$F$9 -> 0 | E13: =システム設定!E29 -> 項目名27 | F13: =システム設定!$F$29 -> 0
B14: =システム設定!E10 -> 体重 | C14: =システム設定!$F$10 -> 0 | E14: =システム設定!E30 -> 項目名28 | F14: =システム設定!$F$30 -> 0
B15: =システム設定!E11 -> B/W/H | C15: =システム設定!$F$11 -> 0 | E15: =システム設定!E31 -> 項目名29 | F15: =システム設定!$F$31 -> 0
B16: =システム設定!E12 -> 住まい | C16: =システム設定!$F$12 -> 0 | E16: =システム設定!E32 -> 項目名30 | F16: =システム設定!$F$32 -> 0
B17: =システム設定!E13 -> 連絡取れる時間 | C17: =システム設定!$F$13 -> アルバイトをしているためAM中可能 | E17: =システム設定!E33 -> 項目名31 | F17: =システム設定!$F$33 -> 0
B18: =システム設定!E14 -> 歯並び・歯の状況 | C18: =システム設定!$F$14 -> 0 | E18: =システム設定!E34 -> 項目名32 | F18: =システム設定!$F$34 -> 0
B19: =システム設定!E15 -> 視力 | C19: =システム設定!$F$15 -> メガネ | E19: =システム設定!E35 -> 項目名33 | F19: =システム設定!$F$35 -> 0
B20: =システム設定!E16 -> 移動手段 | C20: =システム設定!$F$16 -> 市外であれば送迎手配 希望 | E20: =システム設定!E36 -> 項目名34 | F20: =システム設定!$F$36 -> 0
B21: =システム設定!E17 -> 付き添い者情報 | C21: =システム設定!$F$17 -> 母・働いているため動きにくい | E21: =システム設定!E37 -> 項目名35 | F21: =システム設定!$F$37 -> 0
B22: =システム設定!E18 -> 送迎手配 | C22: =システム設定!$F$18 -> 基本母 | E22: =システム設定!E38 -> 項目名36 | F22: =システム設定!$F$38 -> 0
B23: =システム設定!E19 -> 宿泊先可能場所 | C23: =システム設定!$F$19 -> 0 | E23: =システム設定!E39 -> 項目名37 | F23: =システム設定!$F$39 -> 0
B24: =システム設定!E20 -> 東京オーディション | C24: =システム設定!$F$20 -> 可能 | E24: =システム設定!E40 -> 項目名38 | F24: =システム設定!$F$40 -> 0
B25: =システム設定!E21 -> 家族構成 | C25: =システム設定!$F$21 -> 赤ちゃん３歳女の子 | E25: =システム設定!E41 -> 項目名39 | F25: =システム設定!$F$41 -> 0
B26: =システム設定!E22 -> 方言・外国語 | C26: =システム設定!$F$22 -> 中国語、博多弁 | E26: =システム設定!E42 -> 項目名40 | F26: =システム設定!$F$42 -> 0
C28: 内 容（41-60） | F28: 内 容（61-80）
B29: =システム設定!E43 -> 項目名41 | C29: =システム設定!$F$43 -> 0 | E29: =システム設定!E63 -> 項目名61 | F29: =システム設定!$F$63 -> 0
B30: =システム設定!E44 -> 項目名42 | C30: =システム設定!$F$44 -> 0 | E30: =システム設定!E64 -> 項目名62 | F30: =システム設定!$F$64 -> 0
B31: =システム設定!E45 -> 項目名43 | C31: =システム設定!$F$45 -> 0 | E31: =システム設定!E65 -> 項目名63 | F31: =システム設定!$F$65 -> 0
B32: =システム設定!E46 -> 項目名44 | C32: =システム設定!$F$46 -> 0 | E32: =システム設定!E66 -> 項目名64 | F32: =システム設定!$F$66 -> 0
B33: =システム設定!E47 -> 項目名45 | C33: =システム設定!$F$47 -> 0 | E33: =システム設定!E67 -> 項目名65 | F33: =システム設定!$F$67 -> 0
B34: =システム設定!E48 -> 項目名46 | C34: =システム設定!$F$48 -> 0 | E34: =システム設定!E68 -> 項目名66 | F34: =システム設定!$F$68 -> 0
B35: =システム設定!E49 -> 項目名47 | C35: =システム設定!$F$49 -> 0 | E35: =システム設定!E69 -> 項目名67 | F35: =システム設定!$F$69 -> 0
B36: =システム設定!E50 -> 項目名48 | C36: =システム設定!$F$50 -> 0 | E36: =システム設定!E70 -> 項目名68 | F36: =システム設定!$F$70 -> 0
B37: =システム設定!E51 -> 項目名49 | C37: =システム設定!$F$51 -> 0 | E37: =システム設定!E71 -> 項目名69 | F37: =システム設定!$F$71 -> 0
B38: =システム設定!E52 -> 項目名50 | C38: =システム設定!$F$52 -> 0 | E38: =システム設定!E72 -> 項目名70 | F38: =システム設定!$F$72 -> 0
B39: =システム設定!E53 -> 項目名51 | C39: =システム設定!$F$53 -> 0 | E39: =システム設定!E73 -> 項目名71 | F39: =システム設定!$F$73 -> 0
B40: =システム設定!E54 -> 項目名52 | C40: =システム設定!$F$54 -> 0 | E40: =システム設定!E74 -> 項目名72 | F40: =システム設定!$F$74 -> 0
B41: =システム設定!E55 -> 項目名53 | C41: =システム設定!$F$55 -> 0 | E41: =システム設定!E75 -> 項目名73 | F41: =システム設定!$F$75 -> 0
B42: =システム設定!E56 -> 項目名54 | C42: =システム設定!$F$56 -> 0 | E42: =システム設定!E76 -> 項目名74 | F42: =システム設定!$F$76 -> 0
B43: =システム設定!E57 -> 項目名55 | C43: =システム設定!$F$57 -> 0 | E43: =システム設定!E77 -> 項目名75 | F43: =システム設定!$F$77 -> 0
B44: =システム設定!E58 -> 項目名56 | C44: =システム設定!$F$58 -> 0 | E44: =システム設定!E78 -> 項目名76 | F44: =システム設定!$F$78 -> 0
B45: =システム設定!E59 -> 項目名57 | C45: =システム設定!$F$59 -> 0 | E45: =システム設定!E79 -> 項目名77 | F45: =システム設定!$F$79 -> 0
B46: =システム設定!E60 -> 項目名58 | C46: =システム設定!$F$60 -> 0 | E46: =システム設定!E80 -> 項目名78 | F46: =システム設定!$F$80 -> 0
B47: =システム設定!E61 -> 項目名59 | C47: =システム設定!$F$61 -> 0 | E47: =システム設定!E81 -> 項目名79 | F47: =システム設定!$F$81 -> 0
B48: =システム設定!E62 -> 項目名60 | C48: =システム設定!$F$62 -> 0 | E48: =システム設定!E82 -> 項目名80 | F48: =システム設定!$F$82 -> 0
C50: 内 容（81-90） | F50: 内 容（91-100）
B51: =システム設定!E83 -> 項目名81 | C51: =システム設定!F83 -> 0 | E51: =システム設定!E93 -> 項目名91 | F51: =システム設定!F93 -> 0
B52: =システム設定!E84 -> 項目名82 | C52: =システム設定!F84 -> 0 | E52: =システム設定!E94 -> 項目名92 | F52: =システム設定!F94 -> 0
B53: =システム設定!E85 -> 項目名83 | C53: =システム設定!F85 -> 0 | E53: =システム設定!E95 -> 項目名93 | F53: =システム設定!F95 -> 0
B54: =システム設定!E86 -> 項目名84 | C54: =システム設定!F86 -> 0 | E54: =システム設定!E96 -> 項目名94 | F54: =システム設定!F96 -> 0
B55: =システム設定!E87 -> 項目名85 | C55: =システム設定!F87 -> 0 | E55: =システム設定!E97 -> 項目名95 | F55: =システム設定!F97 -> 0
B56: =システム設定!E88 -> 項目名86 | C56: =システム設定!F88 -> 0 | E56: =システム設定!E98 -> 項目名96 | F56: =システム設定!F98 -> 0
B57: =システム設定!E89 -> 項目名87 | C57: =システム設定!F89 -> 0 | E57: =システム設定!E99 -> 項目名97 | F57: =システム設定!F99 -> 0
B58: =システム設定!E90 -> 項目名88 | C58: =システム設定!F90 -> 0 | E58: =システム設定!E100 -> 項目名98 | F58: =システム設定!F100 -> 0
B59: =システム設定!E91 -> 項目名89 | C59: =システム設定!F91 -> 0 | E59: =システム設定!E101 -> 項目名99 | F59: =システム設定!F101 -> 0
B60: =システム設定!E92 -> 項目名90 | C60: =システム設定!F92 -> 0 | E60: =システム設定!E102 -> 項目名100 | F60: =システム設定!F102 -> 0
E62: 補助処理＞システム設定 に登録したデータ
E63: =システム設定!B8 -> 郵便番号 | F63: =システム設定!C8 -> 812-0011
E64: =システム設定!B9 -> 住所１ | F64: =システム設定!C9 -> 福岡市博多区
E65: =システム設定!B10 -> 住所２ | F65: =システム設定!C10 -> (マンション名など)
E66: =システム設定!B11 -> ユーザー名 | F66: =システム設定!C11 -> 日本アプリケーション開発
E67: =システム設定!B12 -> 電話番号 | F67: =システム設定!C12 -> TEL 092-123-4567

Sheet 一覧表印刷
C3: 建物名 | D3: ふりがな | E3: 名前 | F3: メールアドレス | G3: 郵便番号 | H3: 住所 | I3: 地区区分
C4: ○○マンション1号室 | D4: サトウハナコ | E4: 佐藤花子 | F4: aaa@*** | G4: 160-0001 | H4: 東京都新宿区片町 | I4: 東部
C5: 1丁目2番3号 | D5: タナカイチロウ | E5: 田中一郎 | F5: bbb@*** | G5: 160-0002 | H5: 東京都新宿区坂町 | I5: 西部
C6: △△マンション1001号室 | D6: スズキジロウ | E6: 鈴木二郎 | F6: ccc@*** | G6: 160-0003 | H6: 東京都新宿区本塩町 | I6: 南部
D7: サトウサブロウ | E7: 佐藤三郎 | F7: ddd@*** | G7: 160-0004 | H7: 東京都新宿区四谷 | I7: 南部
D8: タナカシロウ | E8: 田中四郎 | F8: eee@*** | G8: 160-0005 | H8: 東京都新宿区愛住町 | I8: 北部

Sheet はがき宛名
K7: =システム設定!$F$5 -> 0000********
K9: =システム設定!$F$6 -> ８歳
K11: =システム設定!$F$7 -> 小学三年生
K15: =システム設定!$F$3 & IF(システム設定!$F$3="",""," 様") -> 佐藤花子 様

Sheet ラベル12枚
B2: + | AO2: + | CB2: +
H4: =ラベル用_システム設定!$F$4 -> 160-0001 | AU4: =ラベル用_システム設定!$F$5 -> 0
H5: =ラベル用_システム設定!$G$4 -> 東京都新宿区片町 | AU5: =ラベル用_システム設定!$G$5 -> 0
H6: =ラベル用_システム設定!$H$4 -> ○○マンション1号室 | AU6: =ラベル用_システム設定!$H$5 -> 0
H8: =ラベル用_システム設定!$D$4 &IF(ラベル用_システム設定!$D$4="",""," 様") -> 佐藤花子 様 | AU8: =ラベル用_システム設定!$D$5 & IF(ラベル用_システム設定!$D$5="",""," 様") -> 
B12: + | AO12: + | CB12: +
H14: =ラベル用_システム設定!$F$6 -> 0 | AU14: =ラベル用_システム設定!$F$7 -> 0
H15: =ラベル用_システム設定!$G$6 -> 0 | AU15: =ラベル用_システム設定!$G$7 -> 0
H16: =ラベル用_システム設定!$H$6 -> 0 | AU16: =ラベル用_システム設定!$H$7 -> 0
H18: =ラベル用_システム設定!$D$6 &IF(ラベル用_システム設定!$D$6="",""," 様") ->  | AU18: =ラベル用_システム設定!$D$7 &IF(ラベル用_システム設定!$D$7="",""," 様") -> 
B22: + | AO22: + | CB22: +
H24: =ラベル用_システム設定!$F$8 -> 0 | AU24: =ラベル用_システム設定!$F$9 -> 0
H25: =ラベル用_システム設定!$G$8 -> 0 | AU25: =ラベル用_システム設定!$G$9 -> 0
H26: =ラベル用_システム設定!$H$8 -> 0 | AU26: =ラベル用_システム設定!$H$9 -> 0
H28: =ラベル用_システム設定!$D$8 &IF(ラベル用_システム設定!$D$8="",""," 様") ->  | AU28: =ラベル用_システム設定!$D$9 & IF(ラベル用_システム設定!$D$9="",""," 様") -> 
B32: + | AO32: + | CB32: +
H34: =ラベル用_システム設定!$F$10 -> 0 | AU34: =ラベル用_システム設定!$F$11 -> 0
H35: =ラベル用_システム設定!$G$10 -> 0 | AU35: =ラベル用_システム設定!$G$11 -> 0
H36: =ラベル用_システム設定!$H$10 -> 0 | AU36: =ラベル用_システム設定!$H$11 -> 0
H38: =ラベル用_システム設定!$D$10 & IF(ラベル用_システム設定!$D$10="",""," 様") ->  | AU38: =ラベル用_システム設定!$D$11 & IF(ラベル用_システム設定!$D$11="",""," 様") -> 
B42: + | AO42: + | CB42: +
H44: =ラベル用_システム設定!$F$12 -> 0 | AU44: =ラベル用_システム設定!$F$13 -> 0
H45: =ラベル用_システム設定!$G$12 -> 0 | AU45: =ラベル用_システム設定!$G$13 -> 0
H46: =ラベル用_システム設定!$H$12 -> 0 | AU46: =ラベル用_システム設定!$H$13 -> 0
H48: =ラベル用_システム設定!$D$12 &IF(ラベル用_システム設定!$D$12="",""," 様") ->  | AU48: =ラベル用_システム設定!$D$13 & IF(ラベル用_システム設定!$D$13="",""," 様") -> 
B52: + | AO52: + | CB52: +
H54: =ラベル用_システム設定!$F$14 -> 0 | AU54: =ラベル用_システム設定!$F$15 -> 0
H55: =ラベル用_システム設定!$G$14 -> 0 | AU55: =ラベル用_システム設定!$G$15 -> 0
H56: =ラベル用_システム設定!$H$14 -> 0 | AU56: =ラベル用_システム設定!$H$15 -> 0
H58: =ラベル用_システム設定!$D$14 & IF(ラベル用_システム設定!$D$14="",""," 様") ->  | AU58: =ラベル用_システム設定!$D$15 & IF(ラベル用_システム設定!$D$15="",""," 様") -> 
B62: + | AO62: + | CB62: +

Sheet レポート原本
